bitfinex/quotes_BTCUSD_20250124
["timestamp","ask_amount","ask_price","bid_price","bid_amount"]
[1737684804833,0.02029862,103240.0,103230.0,0.49763915]
[1737684805239,0.02033862,103240.0,103230.0,0.48820758]
[1737684805669,0.00033862,103240.0,103230.0,0.48820758]
[1737684805868,0.20525378,103240.0,103230.0,0.48820758]
[1737684806021,0.20525378,103240.0,103230.0,0.39133658]
[1737684806237,0.20525378,103240.0,103230.0,0.33820758]
[1737684806439,0.28555378,103240.0,103230.0,0.14398929]
[1737684806620,0.33475378,103240.0,103230.0,0.08802118]
[1737684807164,0.33475378,103240.0,103230.0,0.23802118]
[1737684808605,0.33475378,103240.0,103230.0,0.08802118]
[1737684808817,0.35775378,103240.0,103230.0,0.08802118]
[1737684809077,0.46580794,103240.0,103230.0,0.08802118]
[1737684809281,0.35775378,103240.0,103230.0,0.08802118]
[1737684810139,0.35775378,103240.0,103230.0,0.08702118]
[1737684810364,0.35975378,103240.0,103230.0,0.08702118]
[1737684810734,0.35975378,103240.0,103230.0,0.00028109]
[1737684811821,0.22869962,103240.0,103230.0,0.00028109]
[1737684812045,0.22869962,103240.0,103230.0,0.09715209]
[1737684812159,0.33675378,103240.0,103230.0,0.00028109]
[1737684813408,0.46780794,103240.0,103230.0,0.00028109]
[1737684813611,1.96780794,103240.0,103230.0,0.00028109]
[1737684813831,2.08515523,103240.0,103230.0,0.00028109]
[1737684815279,2.10450656,103240.0,103230.0,0.00028109]
[1737684820763,2.08450656,103240.0,103230.0,0.00028109]
[1737684820971,1.9764524,103240.0,103230.0,0.00028109]
[1737684824526,1.9964524,103240.0,103230.0,0.00028109]
[1737684825903,1.9764524,103240.0,103230.0,0.00028109]
[1737684826602,1.85610511,103240.0,103230.0,0.00028109]
[1737684827002,1.87910511,103240.0,103230.0,0.00028109]
[1737684828293,1.89910511,103240.0,103230.0,0.00028109]
[1737684828701,1.87910511,103240.0,103230.0,0.00028109]
[1737684831878,1.89910511,103240.0,103230.0,0.00028109]
[1737684832321,1.87910511,103240.0,103230.0,0.00028109]
[1737684836130,1.89910511,103240.0,103230.0,0.00028109]
[1737684837330,1.87910511,103240.0,103230.0,0.00028109]
[1737684839789,1.87898819,103240.0,103230.0,0.00028109]
[1737684840840,1.87898819,103240.0,103230.0,0.15028109]
[1737684841007,0.11843403,103240.0,103230.0,0.07738109]
[1737684841234,0.22648819,103240.0,103230.0,0.07738109]
[1737684841434,1.79678819,103240.0,103230.0,0.00028109]
[1737684841643,2.00218964,103240.0,103230.0,0.00028109]
[1737684841873,1.89413548,103240.0,103230.0,0.00028109]
[1737684842258,2.00218964,103240.0,103230.0,0.00028109]
[1737684842457,1.89413548,103240.0,103230.0,0.00028109]
[1737684849009,0.39413548,103240.0,103230.0,0.00028109]
[1737684851584,0.39413548,103240.0,103230.0,0.00042329]
[1737684855224,0.29678819,103240.0,103230.0,0.00042329]
[1737684855429,0.22648819,103240.0,103230.0,0.00042329]
[1737684856161,0.29938819,103240.0,103230.0,0.00042329]
[1737684863579,0.24948819,103240.0,103230.0,0.00042329]
[1737684864190,0.22648819,103240.0,103230.0,0.00042329]
[1737684864717,0.0022217,103240.0,103230.0,0.47606347]
[1737684864927,0.0022217,103240.0,103230.0,0.28184517]
[1737684865131,0.20713686,103240.0,103230.0,0.25607001]
[1737684865384,0.0022217,103240.0,103230.0,0.4502883]
[1737684865541,0.0002217,103240.0,103230.0,0.47606346]
[1737684865743,0.0970827,103240.0,103230.0,0.47606346]
[1737684865952,0.0970827,103240.0,103230.0,0.37971617]
[1737684866162,0.27563686,103240.0,103230.0,0.03167001]
[1737684866368,1.77563686,103240.0,103230.0,0.03167001]
[1737684866968,1.77563686,103240.0,103230.0,0.00142328]
[1737684867167,1.77563686,103240.0,103230.0,0.00042328]
[1737684867583,1.77763686,103240.0,103230.0,0.00042328]
[1737684868191,1.70713686,103240.0,103230.0,0.00042328]
[1737684870253,1.71669491,103240.0,103230.0,0.00042328]
[1737684882998,1.82474907,103240.0,103230.0,0.00042328]
[1737684883464,1.71669491,103240.0,103230.0,0.00042328]
[1737684889740,1.75059703,103240.0,103230.0,0.00042328]
[1737684893452,0.25059703,103240.0,103230.0,0.00042328]
[1737684895126,0.17961889,103240.0,103230.0,0.00042328]
[1737684895274,0.17006084,103240.0,103230.0,0.34986944]
[1737684895685,0.17006084,103240.0,103230.0,0.34986943]
[1737684896292,0.17006084,103240.0,103230.0,0.38011112]
[1737684896496,0.07319984,103240.0,103230.0,0.38011112]
[1737684897139,0.07319984,103240.0,103230.0,0.47745841]
[1737684897742,0.11033518,103240.0,103230.0,0.47745841]
[1737684898597,0.0022217,103240.0,103230.0,0.47745841]
[1737684898830,0.0022217,103240.0,103230.0,0.52515841]
[1737684899036,0.11033518,103240.0,103230.0,0.52515841]
[1737684899239,0.20719618,103240.0,103230.0,0.49491672]
[1737684899445,0.20719618,103240.0,103230.0,0.25299843]
[1737684899646,0.31149618,103240.0,103230.0,0.20640223]
[1737684899850,0.23019618,103240.0,103230.0,0.15042327]
[1737684900123,0.20719618,103240.0,103230.0,0.22782326]
[1737684900955,0.20719618,103240.0,103230.0,0.15042326]
[1737684901161,0.31530966,103240.0,103230.0,0.15042326]
[1737684901366,0.33830966,103240.0,103230.0,0.15042326]
[1737684901679,0.23019618,103240.0,103230.0,0.15042326]
[1737684903969,0.2399118,103240.0,103230.0,0.15042326]
[1737684904389,0.2169118,103240.0,103230.0,0.15042326]
[1737684904600,0.20719618,103240.0,103230.0,0.15042326]
[1737684907672,0.20719618,103240.0,103230.0,0.15042326]
[1737684911099,0.33830966,103240.0,103230.0,0.00042326]
[1737684911307,0.42100966,103240.0,103230.0,0.00042326]
[1737684911531,0.51835695,103240.0,103230.0,0.00042326]
[1737684911737,0.56625695,103240.0,103230.0,0.00042326]
[1737684916168,0.33779618,103240.0,103230.0,0.00042326]
[1737684916385,0.25509618,103240.0,103230.0,0.00042326]
[1737684916597,0.27809618,103240.0,103230.0,0.00042326]
[1737684918318,0.38620966,103240.0,103230.0,0.00042326]
[1737684920064,0.38606457,103240.0,103230.0,0.00042326]
[1737684921113,0.27795109,103240.0,103230.0,0.00042326]
[1737684923919,1.77795109,103240.0,103230.0,0.00042326]
[1737684927661,0.27795109,103240.0,103230.0,0.00042326]
[1737684927839,0.00207661,103240.0,103230.0,0.38091831]
[1737684928043,0.00207661,103240.0,103230.0,0.68091831]
[1737684928241,0.00207661,103240.0,103230.0,0.69091831]
[1737684928446,0.00034862,103250.0,103240.0,0.537161]
[1737684928660,0.00029883,103260.0,103250.0,0.096852]
[1737684928853,0.00079661,103260.0,103250.0,0.31335711]
[1737684929029,0.00079661,103260.0,103250.0,0.3133571]
[1737684929892,0.00079661,103260.0,103250.0,0.6143571]
[1737684931158,0.00079661,103260.0,103250.0,0.61435709]
[1737684932102,0.00070819,103260.0,103250.0,0.61435709]
[1737684932444,0.02070819,103260.0,103250.0,0.58415549]
[1737684933705,0.02070819,103260.0,103250.0,0.58415548]
[1737684934556,0.20566367,103260.0,103250.0,0.22125548]
[1737684934772,0.20566367,103260.0,103250.0,0.12390819]
[1737684934993,1.70566367,103260.0,103250.0,0.12390819]
[1737684935202,1.60882167,103260.0,103250.0,0.12390819]
[1737684935686,0.10882167,103260.0,103250.0,0.12390819]
[1737684937389,0.00070819,103260.0,103250.0,0.52125548]
[1737684937935,0.02070819,103260.0,103250.0,0.52125548]
[1737684941031,0.02070819,103260.0,103250.0,0.59975548]
[1737684942381,0.02070819,103260.0,103250.0,0.59975547]
[1737684942931,0.00070819,103260.0,103250.0,0.59975547]
[1737684943559,0.00070819,103260.0,103250.0,0.59989767]
[1737684943800,0.00070819,103260.0,103250.0,0.63976897]
[1737684946247,0.00070819,103260.0,103250.0,0.60973653]
[1737684946450,0.00070819,103260.0,103250.0,0.63974957]
[1737684947482,0.00070819,103260.0,103250.0,0.60973653]
[1737684948624,0.00070819,103260.0,103250.0,0.63975211]
[1737684950031,0.00070819,103260.0,103250.0,0.63875211]
[1737684950392,0.00070819,103260.0,103250.0,0.64775211]
[1737684953827,0.00070819,103260.0,103250.0,0.20362251]
[1737684954032,0.02070819,103260.0,103250.0,0.20362251]
[1737684957264,0.02070819,103260.0,103250.0,0.10627522]
[1737684957265,0.20566367,103260.0,103250.0,0.10627522]
[1737684957958,0.18546792,103260.0,103250.0,0.00942322]
[1737684958165,0.23316792,103260.0,103250.0,0.00242322]
[1737684958371,0.4240814,103260.0,103250.0,0.00242322]
[1737684958559,0.4240814,103260.0,103250.0,0.00642322]
[1737684958784,1.9240814,103260.0,103250.0,3.708e-05]
[1737684959173,1.9240814,103260.0,103250.0,0.00103708]
[1737684959395,1.9240814,103260.0,103250.0,0.001]
[1737684959572,0.290567,103250.0,103230.0,0.6782082]
[1737684959773,0.39868048,103250.0,103230.0,0.77555549]
[1737684959980,0.39868048,103250.0,103240.0,0.096861]
[1737684960539,0.39868048,103250.0,103230.0,0.58181549]
[1737684961207,0.39868048,103250.0,103240.0,0.096861]
[1737684961405,0.10811348,103250.0,103240.0,0.096861]
[1737684961649,0.022,103260.0,103250.0,0.096852]
[1737684961912,0.00029862,103270.0,103260.0,0.096842]
[1737684962113,0.02029862,103270.0,103260.0,0.19418929]
[1737684963453,0.02029862,103270.0,103260.0,0.19518929]
[1737684963659,0.02029862,103270.0,103260.0,0.22496445]
[1737684965638,0.00029862,103270.0,103260.0,0.22496445]
[1737684965857,0.02029862,103270.0,103260.0,0.22496445]
[1737684966054,0.02029862,103270.0,103260.0,0.25511534]
[1737684966259,0.00029862,103270.0,103260.0,0.25511534]
[1737684966462,0.00029862,103270.0,103260.0,0.63581534]
[1737684967760,0.00029862,103270.0,103260.0,0.63081534]
[1737684968225,0.00029862,103270.0,103260.0,0.63281534]
[1737684968393,0.00029862,103270.0,103260.0,0.63881534]
[1737684968569,0.00029862,103270.0,103260.0,0.64881534]
[1737684969250,0.02,103290.0,103280.0,0.096824]
[1737684969409,0.02033883,103300.0,103290.0,0.096814]
[1737684969569,0.02043523,103300.0,103290.0,0.22431218]
[1737684970296,0.00043523,103300.0,103290.0,0.22431218]
[1737684970710,0.00043523,103300.0,103290.0,0.096814]
[1737684970711,0.20535371,103300.0,103290.0,0.096814]
[1737684970912,0.02,103290.0,103280.0,0.31622416]
[1737684971119,0.02,103290.0,103280.0,0.44370054]
[1737684971326,0.02,103290.0,103280.0,0.44870054]
[1737684971538,0.02,103290.0,103280.0,0.44470054]
[1737684971751,0.02,103290.0,103280.0,0.44370054]
[1737684971956,0.02,103290.0,103280.0,0.44370754]
[1737684972355,0.02143523,103300.0,103290.0,0.096814]
[1737684972565,0.02043523,103300.0,103290.0,0.22429038]
[1737684972976,0.00034683,103300.0,103290.0,0.22429038]
[1737684973581,0.02034683,103300.0,103290.0,0.22429038]
[1737684973782,0.00034683,103300.0,103290.0,0.22429038]
[1737684974131,0.00034683,103300.0,103290.0,0.22529038]
[1737684974538,0.00034683,103300.0,103290.0,0.22429038]
[1737684974736,0.00034683,103300.0,103290.0,0.37429038]
[1737684974938,0.00034683,103300.0,103290.0,0.37829038]
[1737684975179,0.00034683,103300.0,103290.0,0.37929038]
[1737684975506,0.02034683,103300.0,103290.0,0.37929038]
[1737684976162,0.00034683,103300.0,103290.0,0.37929038]
[1737684976509,0.02034683,103300.0,103290.0,0.37929038]
[1737684976725,0.00034683,103300.0,103290.0,0.37929038]
[1737684976957,0.02034683,103300.0,103290.0,0.37929038]
[1737684977161,0.00034683,103300.0,103290.0,0.37929038]
[1737684979864,0.00034683,103300.0,103290.0,0.76809038]
[1737684980430,8.3e-07,103300.0,103290.0,0.76809038]
[1737684980635,0.00029883,103310.0,103300.0,0.246805]
[1737684980783,0.00029883,103310.0,103300.0,0.40005654]
[1737684980984,0.00029883,103310.0,103300.0,0.47805654]
[1737684981246,0.00029883,103310.0,103300.0,0.60791266]
[1737684981394,0.00029883,103310.0,103300.0,0.65751266]
[1737684981590,0.00029883,103310.0,103300.0,0.54751266]
[1737684982105,0.00029883,103310.0,103300.0,0.83365654]
[1737684982978,0.00029883,103310.0,103300.0,0.84975482]
[1737684983189,0.00029883,103310.0,103300.0,0.85975482]
[1737684983404,0.00029883,103310.0,103300.0,0.86075482]
[1737684983613,0.00029883,103310.0,103300.0,0.84465654]
[1737684983828,0.00029883,103310.0,103300.0,0.86075482]
[1737684984258,8.3e-07,103310.0,103300.0,0.86075482]
[1737684984469,8.3e-07,103310.0,103300.0,0.87775482]
[1737684984675,8.3e-07,103310.0,103300.0,1.08102512]
[1737684984879,8.3e-07,103310.0,103300.0,1.08202512]
[1737684985507,4.5e-07,103320.0,103310.0,0.659096]
[1737684985719,7.7e-07,103330.0,103320.0,0.436086]
[1737684985927,9.712e-05,103330.0,103320.0,0.58933754]
[1737684986523,9.712e-05,103330.0,103320.0,0.77933754]
[1737684988058,9.712e-05,103330.0,103320.0,0.78633754]
[1737684988386,9.712e-05,103330.0,103320.0,0.7890134]
[1737684988589,9.712e-05,103330.0,103320.0,0.7950134]
[1737684988798,9.712e-05,103330.0,103320.0,0.7960134]
[1737684989327,0.00029842,103350.0,103340.0,0.246767]
[1737684989532,0.00029842,103350.0,103340.0,0.36988945]
[1737684990546,0.00029842,103350.0,103340.0,0.37088945]
[1737684990749,0.02029842,103350.0,103340.0,0.37488945]
[1737684990961,0.02029842,103350.0,103340.0,0.36988945]
[1737684991213,0.02029842,103350.0,103340.0,0.37088945]
[1737684993989,0.00029842,103350.0,103340.0,0.37088945]
[1737684994393,0.00029842,103350.0,103340.0,0.4008281]
[1737684995030,0.00029842,103350.0,103340.0,0.3998281]
[1737684995659,0.00029842,103350.0,103340.0,0.36988945]
[1737684996379,0.00029842,103350.0,103340.0,0.37088945]
[1737684996553,0.00029842,103350.0,103340.0,0.40484342]
[1737684996757,0.00029842,103350.0,103340.0,0.37488945]
[1737684997199,0.00029842,103350.0,103340.0,0.40484369]
[1737684997998,0.00029842,103350.0,103340.0,0.70484369]
[1737684998167,0.00029842,103350.0,103340.0,0.78614369]
[1737684998368,0.12389862,103370.0,103340.0,0.68937669]
[1737684998762,0.04929597,103370.0,103360.0,0.096749]
[1737684998965,0.04929597,103370.0,103360.0,0.36987145]
[1737684999412,0.04929597,103370.0,103360.0,0.3998276]
[1737684999618,0.00079597,103370.0,103360.0,0.3998276]
[1737685000229,0.00079597,103370.0,103360.0,0.4008276]
[1737685000433,0.00079597,103370.0,103360.0,0.4813276]
[1737685000640,0.00079597,103370.0,103360.0,0.4853276]
[1737685001590,0.00079597,103370.0,103360.0,0.7853276]
[1737685002458,0.00079597,103370.0,103360.0,0.7843276]
[1737685002874,0.00079597,103370.0,103360.0,0.7853276]
[1737685003040,0.00079597,103370.0,103360.0,0.7813276]
[1737685003419,0.00079597,103370.0,103360.0,0.7873276]
[1737685003629,0.00079597,103370.0,103360.0,0.9203276]
[1737685003842,9.7e-07,103370.0,103360.0,0.9203276]
[1737685004053,0.00035862,103380.0,103370.0,0.329339]
[1737685004260,0.00050777,103380.0,103370.0,0.42668629]
[1737685004470,0.00050777,103380.0,103370.0,0.45664244]
[1737685004674,0.00050777,103380.0,103370.0,0.37404244]
[1737685005095,0.04553155,103400.0,103390.0,0.246721]
[1737685005298,0.04553155,103400.0,103390.0,0.3997996]
[1737685005691,0.12813155,103400.0,103390.0,0.3997996]
[1737685006585,0.33295603,103400.0,103390.0,0.30245231]
[1737685007148,0.33295603,103400.0,103390.0,0.30345231]
[1737685007752,0.33295603,103400.0,103390.0,0.15345231]
[1737685007963,0.23624503,103400.0,103390.0,0.15345231]
[1737685009435,0.05560079,103400.0,103390.0,0.15345231]
[1737685010511,0.03560079,103400.0,103390.0,0.2507996]
[1737685010724,0.00029862,103410.0,103400.0,0.096711]
[1737685010960,0.00029862,103410.0,103400.0,0.22401444]
[1737685011618,0.02029862,103410.0,103400.0,0.22401444]
[1737685011821,0.00029862,103410.0,103400.0,0.22401444]
[1737685012036,0.00029862,103410.0,103400.0,0.22501444]
[1737685012494,0.00029862,103410.0,103400.0,0.22401444]
[1737685012728,0.00029862,103410.0,103400.0,0.22801444]
[1737685013147,0.00029862,103410.0,103400.0,0.22901444]
[1737685015197,0.3345051,103420.0,103410.0,0.096702]
[1737685015401,0.33465419,103420.0,103410.0,0.12665815]
[1737685015818,0.33465419,103420.0,103410.0,0.02995615]
[1737685016031,0.33465419,103420.0,103410.0,0.12665815]
[1737685016521,0.33465419,103420.0,103410.0,0.12765815]
[1737685017955,0.33465419,103420.0,103410.0,0.03095615]
[1737685018434,0.33465419,103420.0,103410.0,0.02095615]
[1737685021032,0.35765419,103420.0,103410.0,0.02095615]
[1737685021243,0.45500148,103420.0,103410.0,0.01995615]
[1737685021926,0.35765419,103420.0,103410.0,0.01995615]
[1737685024072,0.26096119,103420.0,103410.0,0.01995615]
[1737685024304,0.00044771,103420.0,103410.0,0.11665815]
[1737685024525,0.00044771,103420.0,103410.0,0.6384806]
[1737685024735,0.01597732,103440.0,103430.0,0.096683]
[1737685024942,0.01597732,103440.0,103430.0,0.2397616]
[1737685025414,0.01597732,103440.0,103430.0,0.3154616]
[1737685025645,0.01597732,103440.0,103430.0,0.62501526]
[1737685025868,0.01597732,103440.0,103430.0,0.32501526]
[1737685026075,0.01597732,103440.0,103430.0,0.62501526]
[1737685026704,0.01597732,103440.0,103430.0,0.62601526]
[1737685026895,0.01597732,103440.0,103430.0,0.62501526]
[1737685027087,0.01588899,103440.0,103430.0,0.62501526]
[1737685027313,0.01588899,103440.0,103430.0,0.62901526]
[1737685027731,0.01588899,103440.0,103430.0,0.32901526]
[1737685027952,0.01588899,103440.0,103430.0,0.62901526]
[1737685028162,0.01588899,103440.0,103430.0,0.2437616]
[1737685028455,0.01588899,103440.0,103430.0,0.2447616]
[1737685028870,0.03588899,103440.0,103430.0,0.2447616]
[1737685029757,0.39811348,103450.0,103430.0,0.4381216]
[1737685029973,0.29,103450.0,103430.0,5.5347956]
[1737685030151,0.29,103450.0,103440.0,0.096674]
[1737685030463,0.29,103450.0,103440.0,0.01995615]
[1737685030673,0.39811348,103450.0,103440.0,0.01995615]
[1737685032140,1.89811348,103450.0,103440.0,0.02095615]
[1737685032309,1.92111348,103450.0,103440.0,0.02095615]
[1737685032671,1.99821348,103450.0,103440.0,0.02095615]
[1737685033087,1.99821348,103450.0,103440.0,0.001]
[1737685033261,0.49821348,103450.0,103440.0,0.001]
[1737685034260,0.51765708,103450.0,103440.0,0.001]
[1737685034469,2.03149542,103460.0,103440.0,0.12769575]
[1737685034800,0.096665,103450.0,103440.0,0.32103675]
[1737685035408,0.096665,103450.0,103440.0,0.12769575]
[1737685035622,0.20477848,103450.0,103440.0,0.03002175]
[1737685035828,0.28697848,103450.0,103440.0,0.03002175]
[1737685036030,0.28697848,103450.0,103440.0,0.03102175]
[1737685036240,0.28697848,103450.0,103440.0,0.03002175]
[1737685036573,0.178865,103450.0,103440.0,0.03102175]
[1737685036806,0.178865,103450.0,103440.0,0.03002175]
[1737685037261,0.28697848,103450.0,103440.0,0.03002175]
[1737685038094,0.178865,103450.0,103440.0,0.03002175]
[1737685038721,0.178865,103450.0,103430.0,5.34582891]
[1737685038968,0.67395369,103450.0,103430.0,5.4431762]
[1737685039144,0.19061169,103450.0,103440.0,0.096674]
[1737685039351,0.08249821,103450.0,103440.0,0.12669575]
[1737685039701,0.17916321,103450.0,103440.0,0.12669575]
[1737685039928,0.00029821,103450.0,103440.0,0.12669575]
[1737685040539,0.09696321,103450.0,103440.0,0.12669575]
[1737685041523,0.00029821,103450.0,103440.0,0.12769575]
[1737685042177,0.09696321,103450.0,103440.0,0.12769575]
[1737685044964,0.20507669,103450.0,103440.0,0.03102175]
[1737685046415,0.20507669,103450.0,103440.0,0.03002175]
[1737685047990,0.096674,103440.0,103430.0,5.03002175]
[1737685048191,0.20478748,103440.0,103430.0,5.03002175]
[1737685048391,0.25098748,103440.0,103430.0,5.03002175]
[1737685049075,0.42543477,103440.0,103430.0,5.03002175]
[1737685049283,0.42543477,103440.0,103430.0,5.03102175]
[1737685049490,0.219974,103440.0,103430.0,5.03102175]
[1737685050324,0.32808748,103440.0,103430.0,5.03102175]
[1737685050965,0.32808748,103440.0,103430.0,5.03116395]
[1737685051389,0.32808748,103440.0,103430.0,5.0011422]
[1737685051805,0.32808748,103440.0,103430.0,5.0001422]
[1737685052002,0.34767719,103440.0,103430.0,5.0001422]
[1737685056808,0.11626371,103440.0,103430.0,5.0001422]
[1737685057193,0.22437719,103440.0,103430.0,5.0001422]
[1737685062400,0.22437719,103440.0,103430.0,5.03025771]
[1737685063266,0.27027719,103440.0,103430.0,5.03025771]
[1737685063488,0.58133796,103440.0,103430.0,4.90592549]
[1737685064103,0.56133796,103440.0,103430.0,4.90592549]
[1737685064693,0.58133796,103440.0,103430.0,4.90692549]
[1737685064892,0.55133796,103440.0,103430.0,4.90692549]
[1737685065149,0.56100158,103440.0,103430.0,4.90692549]
[1737685065351,0.22437719,103440.0,103430.0,4.90692549]
[1737685065558,0.22537719,103440.0,103430.0,4.90692549]
[1737685065976,0.22437719,103440.0,103430.0,4.90592549]
[1737685066397,0.22537719,103440.0,103430.0,4.90592549]
[1737685068099,0.22537719,103440.0,103430.0,5.05592549]
[1737685068738,0.40909067,103440.0,103430.0,5.05592549]
[1737685070433,0.30097719,103440.0,103430.0,5.05592549]
[1737685070605,0.40909067,103440.0,103430.0,5.05592549]
[1737685072003,0.30097719,103440.0,103430.0,5.05592549]
[1737685073335,0.30097719,103440.0,103430.0,5.08604609]
[1737685073534,0.40909067,103440.0,103430.0,5.08604609]
[1737685074318,0.40909067,103440.0,103430.0,5.05592549]
[1737685074715,0.30097719,103440.0,103430.0,5.08605367]
[1737685074936,0.40909067,103440.0,103430.0,5.08605367]
[1737685075389,0.33965819,103440.0,103430.0,5.08605367]
[1737685075794,0.33995702,103440.0,103430.0,5.08605367]
[1737685076186,0.4480705,103440.0,103430.0,5.08605367]
[1737685076395,0.33995702,103440.0,103430.0,5.08605367]
[1737685077358,0.4480705,103440.0,103430.0,5.08605367]
[1737685077748,0.59461779,103440.0,103430.0,5.08605367]
[1737685078153,0.59461779,103440.0,103430.0,5.05592549]
[1737685078328,2.09461779,103440.0,103430.0,5.05592549]
[1737685078554,2.09461779,103440.0,103430.0,5.08608021]
[1737685078921,2.11761779,103440.0,103430.0,5.08608021]
[1737685080342,2.11761779,103440.0,103430.0,4.90592549]
[1737685080938,2.11761779,103440.0,103430.0,5.05592549]
[1737685083208,2.12724389,103440.0,103430.0,5.05592549]
[1737685084807,2.12724389,103440.0,103430.0,5.0860967]
[1737685085013,2.12724389,103440.0,103430.0,5.05592549]
[1737685086289,0.39433041,103440.0,103430.0,5.05592549]
[1737685086503,0.15624354,103440.0,103430.0,5.18277681]
[1737685086719,0.02088854,103440.0,103430.0,5.18277681]
[1737685086928,0.11756254,103440.0,103430.0,0.27699352]
[1737685087131,0.22567602,103440.0,103430.0,0.27699352]
[1737685087318,0.12900202,103440.0,103430.0,0.27699352]
[1737685087445,0.02088854,103440.0,103430.0,0.27699352]
[1737685087667,0.00129883,103440.0,103430.0,0.35309352]
[1737685087880,0.00129883,103440.0,103430.0,0.52221597]
[1737685088089,0.00129883,103440.0,103430.0,0.82221597]
[1737685088335,0.00029821,103450.0,103440.0,0.328774]
[1737685088540,0.00029821,103450.0,103440.0,0.45628961]
[1737685091079,0.00229821,103450.0,103440.0,0.45628961]
[1737685091781,0.11041169,103450.0,103440.0,0.35894232]
[1737685092576,0.20707669,103450.0,103440.0,0.03016832]
[1737685092777,0.20707669,103450.0,103440.0,0.18016832]
[1737685093330,0.32742398,103450.0,103440.0,0.03016832]
[1737685093541,0.096674,103440.0,103430.0,0.0867725]
[1737685093752,1.70478748,103440.0,103430.0,0.0867725]
[1737685093986,1.70478748,103440.0,103430.0,0.11687663]
[1737685094413,0.20478748,103440.0,103430.0,0.11687663]
[1737685094826,0.20478748,103440.0,103430.0,0.26687663]
[1737685096124,0.20478748,103440.0,103430.0,0.18024633]
[1737685096538,0.20478748,103440.0,103430.0,0.18124633]
[1737685096738,0.33590096,103440.0,103430.0,0.18124633]
[1737685098323,0.33619979,103440.0,103430.0,0.18124633]
[1737685098561,0.43354708,103440.0,103430.0,0.18124633]
[1737685098957,0.43354708,103440.0,103430.0,0.1511422]
[1737685099663,0.43354708,103440.0,103430.0,0.1501422]
[1737685100074,0.43554708,103440.0,103430.0,0.1501422]
[1737685100493,0.45440645,103440.0,103430.0,0.1501422]
[1737685101818,0.46440645,103440.0,103430.0,0.1501422]
[1737685103182,0.59450645,103440.0,103430.0,0.1501422]
[1737685105754,0.58450645,103440.0,103430.0,0.1501422]
[1737685111684,0.59450645,103440.0,103430.0,0.1501422]
[1737685112103,0.58450645,103440.0,103430.0,0.1501422]
[1737685112316,0.59450645,103440.0,103430.0,0.1501422]
[1737685113048,0.59250645,103440.0,103430.0,0.1501422]
[1737685113261,0.59450645,103440.0,103430.0,0.1501422]
[1737685113699,2.09250645,103440.0,103430.0,0.1501422]
[1737685113919,2.09450645,103440.0,103430.0,0.1511422]
[1737685116819,0.22594568,103440.0,103430.0,0.1511422]
[1737685117032,0.0211582,103440.0,103430.0,0.2478252]
[1737685117213,0.12927168,103440.0,103430.0,0.27791126]
[1737685118503,0.12727168,103440.0,103430.0,0.27691126]
[1737685118704,0.12927168,103440.0,103430.0,0.27691126]
[1737685118845,0.13327168,103440.0,103430.0,0.27691126]
[1737685120375,0.22994568,103440.0,103430.0,0.27691126]
[1737685121375,0.22794568,103440.0,103430.0,0.27691126]
[1737685121706,0.22894568,103440.0,103430.0,0.27691126]
[1737685122024,0.22394568,103440.0,103430.0,0.27691126]
[1737685122435,0.12927168,103440.0,103430.0,0.27691126]
[1737685123146,0.22594568,103440.0,103430.0,0.27691126]
[1737685124623,0.22594568,103440.0,103430.0,0.18022826]
[1737685125669,0.33405916,103440.0,103430.0,0.18022826]
[1737685125872,0.43140645,103440.0,103430.0,0.18022826]
[1737685126074,0.51320645,103440.0,103430.0,0.1501422]
[1737685126283,0.51320645,103440.0,103430.0,0.18025029]
[1737685126508,0.51320645,103440.0,103430.0,0.1501422]
[1737685131613,0.32329297,103440.0,103430.0,0.1501422]
[1737685131981,0.32329297,103440.0,103430.0,0.18026482]
[1737685136220,0.22594568,103440.0,103430.0,0.27694782]
[1737685136431,0.0211582,103440.0,103430.0,0.27694782]
[1737685136639,0.12927168,103440.0,103430.0,0.27694782]
[1737685137894,0.0211582,103440.0,103430.0,0.27694782]
[1737685138099,0.0211582,103440.0,103430.0,0.49919511]
[1737685138100,0.00229883,103440.0,103430.0,0.49919511]
[1737685138308,0.00229883,103440.0,103430.0,0.52497027]
[1737685138714,0.00029821,103450.0,103440.0,0.322074]
[1737685138895,0.10841169,103450.0,103440.0,0.322074]
[1737685139099,0.10841169,103450.0,103440.0,0.35219662]
[1737685140879,0.11341169,103450.0,103440.0,0.35219662]
[1737685141095,0.13271826,103450.0,103440.0,0.35219662]
[1737685141545,0.02460478,103450.0,103440.0,0.35219662]
[1737685142900,0.13271826,103450.0,103440.0,0.35219662]
[1737685143890,0.13271826,103450.0,103440.0,0.18012262]
[1737685143891,0.32673055,103450.0,103440.0,0.18012262]
[1737685144092,0.32673055,103450.0,103430.0,0.1321422]
[1737685144093,0.096674,103440.0,103430.0,0.0001422]
[1737685144256,0.41024825,103440.0,103430.0,0.0001422]
[1737685145315,0.41124825,103440.0,103430.0,0.0001422]
[1737685145526,0.41224825,103440.0,103430.0,0.0001422]
[1737685145721,0.49104825,103440.0,103430.0,0.0001422]
[1737685148545,0.49104825,103440.0,103430.0,0.0001422]
[1737685149529,0.50059708,103440.0,103430.0,0.0001422]
[1737685150142,0.53359708,103440.0,103430.0,0.0001422]
[1737685156442,2.03359708,103440.0,103430.0,0.0001422]
[1737685156651,2.03259708,103440.0,103430.0,0.0001422]
[1737685156991,2.03859708,103440.0,103430.0,0.0011422]
[1737685157191,2.03759708,103440.0,103430.0,0.0011422]
[1737685157615,2.03959708,103440.0,103430.0,0.0011422]
[1737685158892,0.59629708,103440.0,103430.0,1e-08]
[1737685159929,0.67364437,103440.0,103430.0,1e-08]
[1737685160341,0.158,103420.0,103410.0,0.150142]
[1737685160571,0.158,103420.0,103410.0,0.000142]
[1737685160572,0.46015377,103420.0,103410.0,0.000142]
[1737685160794,0.48015377,103420.0,103410.0,0.000142]
[1737685161174,0.56826725,103420.0,103410.0,0.150142]
[1737685161378,0.30215377,103420.0,103410.0,0.150142]
[1737685161587,0.30615377,103420.0,103410.0,0.150142]
[1737685161961,0.31774756,103420.0,103410.0,0.150142]
[1737685167251,0.33683641,103420.0,103410.0,0.150142]
[1737685169497,0.12178185,103420.0,103410.0,0.232142]
[1737685169717,0.22989533,103420.0,103410.0,0.232142]
[1737685170299,0.22589533,103420.0,103410.0,0.232142]
[1737685170516,0.22389533,103420.0,103410.0,0.232142]
[1737685171471,0.22389533,103420.0,103410.0,0.328844]
[1737685171873,0.22389533,103420.0,103410.0,0.232142]
[1737685172474,0.22389533,103420.0,103410.0,0.328844]
[1737685175893,0.12720233,103420.0,103410.0,0.328844]
[1737685176100,1.6084121,103440.0,103420.0,0.096693]
[1737685176101,0.3984521,103440.0,103420.0,0.096693]
[1737685176308,0.3984521,103440.0,103430.0,0.15]
[1737685176309,0.49579939,103440.0,103430.0,0.15]
[1737685176515,1.99579939,103440.0,103430.0,0.15]
[1737685176718,2.10391287,103440.0,103430.0,0.15]
[1737685177107,0.50554333,103440.0,103430.0,0.15]
[1737685177320,0.50754333,103440.0,103430.0,0.15]
[1737685177897,0.61665681,103440.0,103430.0,0.15]